bitfinex-derivatives/quotes_SOLF0:USTF0_20230402
["timestamp","ask_amount","ask_price","bid_price","bid_amount"]
[1680467852646,24.56278748,20.437,20.429,46.3674]
[1680467862159,19.56,20.436,20.429,65.9774]
[1680467868257,19.56,20.433,20.429,46.3674]
[1680467868464,19.56,20.433,20.426,34.62336083]
[1680467871163,19.52,20.433,20.426,34.60336083]
[1680467872068,19.52,20.432,20.426,15.01336083]
[1680467872268,19.52,20.432,20.425,19.59]
[1680467875168,19.52,20.432,20.425,34.44973915]
[1680467887985,19.52,20.432,20.425,19.59]
[1680467888782,19.62,20.43,20.422,19.65503749]
[1680467888979,19.62,20.426,20.422,0.06503749]
[1680467889183,19.62,20.426,20.419,19.59]
[1680467890886,5.0,20.429,20.417,0.06141917]
[1680467890887,19.52,20.423,20.417,0.06141917]
[1680467891086,19.52,20.423,20.415,19.59]
[1680467892088,19.52,20.425,20.417,19.62]
[1680467900903,19.62,20.422,20.414,81.21554584]
[1680467902002,19.6,20.422,20.414,81.26554584]
[1680467910608,19.6,20.425,20.417,19.64]
[1680467912111,19.6,20.425,20.416,19.64]
[1680467919914,0.06414661,20.426,20.419,19.64]
[1680467920116,0.06414661,20.426,20.422,19.64]
[1680467920313,19.6,20.43,20.422,19.64]
[1680467921815,19.64,20.427,20.42,19.64]
[1680467922015,19.6,20.426,20.419,19.70323578]
[1680467933126,19.57,20.426,20.419,19.62323578]
[1680467941641,19.57,20.423,20.419,0.06323578]
[1680467941939,19.57,20.423,20.415,19.56]
[1680467942241,19.56,20.422,20.414,81.25240544]
[1680467952147,19.56,20.42,20.414,61.69240544]
[1680467952346,19.56,20.42,20.414,61.62554584]
[1680467962054,19.57,20.421,20.414,81.25554584]
[1680467964053,19.57,20.421,20.414,81.08554584]
[1680467967259,19.57,20.421,20.414,66.3201]
[1680467972165,19.57,20.42,20.414,46.8601]
[1680467990483,19.57,20.42,20.413,19.46]
[1680467992082,19.57,20.418,20.41,19.70562414]
[1680467993481,19.58,20.418,20.41,19.61562414]
[1680467994379,19.58,20.418,20.41,34.59210475]
[1680467997585,19.64385449,20.421,20.414,19.65]
[1680468001789,0.06385449,20.421,20.417,19.65]
[1680468002090,19.58,20.425,20.418,19.55]
[1680468002286,19.58,20.425,20.418,24.55]
[1680468002686,19.58,20.425,20.418,19.55]
[1680468022001,19.58,20.423,20.416,19.55]
[1680468024305,19.64,20.423,20.416,19.55]
[1680468028005,19.64,20.421,20.414,0.06952149]
[1680468042114,19.64,20.418,20.414,0.06952149]
[1680468042412,19.64,20.418,20.411,64.2732]
[1680468049123,19.70525677,20.422,20.414,19.64]
[1680468050415,0.06525677,20.422,20.418,19.64]
[1680468050620,19.64,20.425,20.418,19.64]
[1680468092150,14.98822803,20.426,20.42,19.64]
[1680468092348,19.62283173,20.427,20.42,19.64]
[1680468092651,0.06283173,20.427,20.422,19.64]
[1680468092845,14.59588174,20.427,20.422,19.64]
[1680468093041,19.64,20.429,20.422,19.64]
[1680468102065,19.56,20.428,20.421,19.64]
[1680468102263,19.64,20.425,20.418,0.06794239]
[1680468116770,19.64,20.422,20.414,19.64]
[1680468116969,19.64,20.419,20.411,64.2732]
[1680468117463,19.64,20.419,20.411,19.64]
[1680468121275,0.06802466,20.422,20.408,0.06932789]
[1680468121469,0.06802466,20.422,20.416,19.64]
[1680468121675,19.64,20.424,20.416,19.64]
[1680468122168,19.64,20.425,20.418,19.46]
[1680468127176,0.06550359,20.426,20.416,24.55]
[1680468127579,0.06550359,20.426,20.419,24.55]
[1680468131472,0.06550359,20.426,20.423,24.55]
[1680468131677,0.06052628,20.432,20.425,24.55]
[1680468131873,131.60728008,20.436,20.427,24.55]
[1680468132080,131.60728008,20.436,20.428,24.55]
[1680468132278,0.06564694,20.436,20.428,24.55]
[1680468132681,131.60728008,20.436,20.428,24.55]
[1680468132888,0.06564694,20.436,20.428,24.55]
[1680468136088,0.06564694,20.436,20.429,46.9224]
[1680468137689,0.06564694,20.436,20.428,24.55]
[1680468137888,24.55,20.435,20.425,24.62063194]
[1680468141993,24.55,20.435,20.426,24.55]
[1680468146498,0.06564694,20.436,20.426,24.52]
[1680468153601,0.06564694,20.436,20.429,24.52]
[1680468162008,0.06564694,20.436,20.425,0.07063194]
[1680468162009,0.06564694,20.436,20.426,24.52]
[1680468167015,0.06564694,20.436,20.43,24.52]
[1680468167218,14.91677007,20.439,20.43,24.52]
[1680468167417,14.91677007,20.439,20.425,171.49063194]
[1680468167418,0.06538434,20.44,20.433,24.44]
[1680468168819,14.63061552,20.44,20.433,24.44]
[1680468171921,0.06538434,20.44,20.433,24.44]
[1680468178027,0.06538434,20.44,20.434,24.51]
[1680468178228,14.60241538,20.443,20.434,24.51]
[1680468178425,0.06314933,20.444,20.434,24.51]
[1680468179230,14.76379603,20.444,20.434,24.51]
[1680468179425,0.06314933,20.444,20.434,24.51]
[1680468182026,24.3,20.443,20.432,69.9053]
[1680468183426,24.3,20.443,20.432,84.25950372]
[1680468192133,19.58,20.441,20.434,19.61]
[1680468206145,19.58,20.441,20.435,19.61]
[1680468209852,0.06314933,20.444,20.438,19.47]
[1680468210153,33.91923086,20.445,20.438,19.47]
[1680468226664,47.68643892,20.448,20.442,19.55]
[1680468226870,131.48914137,20.447,20.442,6.53582511]
[1680468227073,19.48,20.449,20.442,6.53582511]
[1680468227271,19.48,20.446,20.439,19.55]
[1680468227971,45.7915,20.451,20.442,19.47]
[1680468228574,19.6,20.449,20.442,19.47]
[1680468229271,45.7915,20.451,20.445,19.47]
[1680468230272,19.6,20.449,20.442,19.47]
[1680468231968,19.6,20.449,20.443,19.55]
[1680468234578,19.6,20.446,20.439,19.61111632]
[1680468245084,19.47,20.449,20.442,19.6]
[1680468252192,19.5352822,20.45,20.443,19.6]
[1680468258999,19.47,20.448,20.441,19.6]
[1680468261997,19.47,20.447,20.44,68.4903]
[1680468291721,19.6652822,20.45,20.443,19.6]
[1680468291922,19.6652822,20.45,20.446,19.6]
[1680468291923,0.0652822,20.45,20.446,19.6]
[1680468292221,34.2432897,20.454,20.447,19.6]
[1680468292423,19.44,20.454,20.447,19.6]
[1680468300930,19.58,20.454,20.447,19.58]
[1680468302030,19.64155803,20.455,20.448,19.58]
[1680468307938,0.06155803,20.455,20.451,19.58]
[1680468308138,19.58,20.458,20.451,19.58]
[1680468312036,19.58,20.456,20.448,19.58]
[1680468313542,19.53,20.453,20.447,0.06957518]
[1680468313838,19.53,20.453,20.446,19.58]
[1680468317036,19.53,20.453,20.443,0.06742205]
[1680468317243,24.3478237,20.455,20.444,24.34]
[1680468317539,24.28,20.455,20.444,24.34]
[1680468322046,24.34543164,20.457,20.446,24.28]
[1680468330553,24.43,20.454,20.443,24.34742205]
[1680468337159,24.24,20.451,20.443,0.06742205]
[1680468337656,24.43,20.448,20.443,0.06742205]
[1680468337862,24.43,20.448,20.438,48.18294381]
[1680468352474,24.42,20.444,20.438,0.06964381]
[1680468352771,24.42,20.444,20.434,0.06668193]
[1680468360479,24.24,20.441,20.434,0.06668193]
[1680468361384,5.0,20.445,20.434,0.06668193]
[1680468361385,24.29,20.439,20.434,0.06668193]
[1680468361581,24.29,20.439,20.429,0.07108734]
[1680468362581,24.29,20.439,20.43,24.51]
[1680468362777,24.51,20.441,20.43,24.51]
[1680468362981,24.51,20.441,20.43,69.5204]
[1680468380493,24.51,20.443,20.432,24.51]
[1680468392816,0.06347756,20.444,20.434,24.36]
[1680468402019,0.06347756,20.444,20.437,24.33]
[1680468405527,0.06347756,20.444,20.433,24.39914785]
[1680468405528,24.57347756,20.444,20.433,24.39914785]
[1680468405725,24.51,20.441,20.433,0.06914785]
[1680468409228,24.51,20.443,20.433,24.39914785]
[1680468420339,24.51,20.441,20.433,0.06914785]
[1680468422039,24.33,20.44,20.433,0.06914785]
[1680468431646,24.49347756,20.444,20.433,24.58914785]
[1680468442159,0.06347756,20.444,20.434,24.52]
[1680468446052,24.41,20.438,20.433,0.06914785]
[1680468446260,24.41,20.438,20.417,585.0]
[1680468446462,24.33,20.435,20.417,14.90847806]
[1680468446759,24.33,20.435,20.423,24.52]
[1680468447761,24.33,20.431,20.422,0.06678405]
[1680468450060,70.2519,20.435,20.423,24.52]
[1680468451750,24.41,20.432,20.422,0.06678405]
[1680468452863,24.43,20.43,20.422,0.06678405]
[1680468456863,24.41,20.427,20.422,0.06678405]
[1680468457065,24.41,20.427,20.418,45.0393]
[1680468457360,24.41,20.424,20.417,0.06196027]
[1680468462060,46.0895,20.427,20.418,24.52]
[1680468462263,0.06431389,20.428,20.418,24.52]
[1680468462565,0.06431389,20.428,20.418,73.6025]
[1680468462766,0.06431389,20.428,20.418,24.36]
[1680468462967,24.54,20.426,20.417,0.06196027]
[1680468463869,45.4165,20.425,20.417,0.06196027]
[1680468470273,45.4165,20.425,20.417,24.60196027]
[1680468475173,245.4165,20.425,20.417,0.06196027]
[1680468504592,245.4165,20.425,20.42,24.55]
[1680468512299,200.0,20.425,20.42,24.55]
[1680468516801,200.0,20.425,20.417,0.06196027]
[1680468527909,200.0,20.425,20.417,5.06196027]
[1680468528206,200.0,20.425,20.419,24.45]
[1680468528806,200.0,20.425,20.422,24.55]
[1680468532015,200.0,20.425,20.423,24.45]
[1680468552230,200.0,20.425,20.424,19.62]
[1680468564533,200.0,20.425,20.42,19.62]
[1680468567039,19.62,20.424,20.417,0.06196027]
[1680468578353,65.0054,20.424,20.417,0.06196027]
[1680468587352,19.46,20.423,20.417,0.06196027]
[1680468587557,45.3854,20.424,20.419,19.45]
[1680468599567,200.0,20.425,20.422,19.45]
[1680468606875,200.0,20.425,20.423,19.45]
[1680468611981,200.0,20.425,20.424,19.45]
[1680468621990,200.0,20.425,20.423,19.64]
[1680468625793,200.0,20.425,20.42,19.63]
[1680468631995,200.0,20.425,20.417,0.06703333]
[1680468631996,200.0,20.425,20.418,19.63]
[1680468652111,19.63,20.424,20.417,0.06703333]
[1680468652310,200.0,20.425,20.42,19.62]
[1680468658218,19.49,20.421,20.417,0.06703333]
[1680468658517,19.49,20.421,20.415,14.7842975]
[1680468658716,19.49,20.421,20.413,19.63]
[1680468661514,19.49,20.421,20.413,34.43021761]
[1680468662018,19.43,20.419,20.413,14.80021761]
[1680468662319,24.43,20.421,20.412,0.06538418]
[1680468662521,47.2403,20.42,20.412,0.06538418]
[1680468665818,47.2403,20.42,20.412,14.46031753]
[1680468666018,47.2403,20.42,20.412,0.06538418]
[1680468669626,24.43,20.421,20.412,0.06538418]
[1680468669821,0.06673466,20.423,20.414,24.56]
[1680468670227,0.06673466,20.423,20.417,24.33]
[1680468670526,200.0,20.425,20.417,24.33]
[1680468671022,200.0,20.425,20.421,24.33]
[1680468671444,200.0,20.425,20.422,5.0]
[1680468672018,200.0,20.425,20.422,29.56]
[1680468672920,200.0,20.425,20.422,24.56]
[1680468678534,200.0,20.425,20.424,24.56]
[1680468687146,200.0,20.425,20.423,24.31]
[1680468695153,185.10069913,20.425,20.424,5.0]
[1680468695447,185.10069913,20.425,20.423,24.31]
[1680468695847,0.07101783,20.432,20.424,5.0]
[1680468696043,24.52,20.439,20.429,5.0]
[1680468696243,24.52,20.442,20.431,24.52]
[1680468699556,24.37,20.441,20.43,24.52]
[1680468709970,24.52,20.437,20.429,0.06522273]
[1680468711975,24.52,20.436,20.429,0.06522273]
[1680468727078,24.52,20.438,20.429,0.06522273]
[1680468732086,71.25467255,20.44,20.429,24.53522273]
[1680468737598,46.73467255,20.44,20.432,24.39]
[1680468742097,46.73467255,20.44,20.434,24.39]
[1680468742292,46.6713,20.44,20.434,24.39]
[1680468747303,0.07135403,20.444,20.434,24.39]
[1680468747698,0.07135403,20.444,20.434,24.5]
[1680468756813,0.07135403,20.444,20.435,44.7548]
[1680468757212,19.6,20.443,20.436,19.6]
[1680468762017,19.6,20.443,20.435,64.3548]
[1680468762317,0.07135403,20.444,20.435,44.7548]
[1680468774023,5.07135403,20.444,20.429,0.06522273]
[1680468774223,5.07135403,20.444,20.407,24.49]
[1680468774224,24.3,20.43,20.407,24.49]
[1680468774429,24.5,20.428,20.408,57.03369519]
[1680468774629,24.5,20.428,20.414,24.5]
[1680468774825,24.3,20.425,20.412,24.37]
[1680468778227,24.38,20.425,20.412,24.53]
[1680468793845,0.06873192,20.426,20.419,24.53]
[1680468808554,0.06873192,20.426,20.419,24.54]
[1680468812655,0.06873192,20.426,20.419,39.23023584]
[1680468818466,0.06873192,20.426,20.419,14.69023584]
[1680468818662,0.06873192,20.426,20.416,69.8963]
[1680468819367,0.06873192,20.426,20.416,84.24441092]
[1680468827071,0.06873192,20.426,20.416,59.80441092]
[1680468827267,19.53,20.424,20.417,19.64]
[1680468833476,0.06873192,20.426,20.42,19.64]
[1680468833677,19.53,20.427,20.42,19.64]
[1680468838574,19.63,20.427,20.42,19.54]
[1680468846379,19.63,20.424,20.416,79.34441092]
[1680468851982,19.63,20.423,20.416,59.80441092]
[1680468856183,19.63,20.42,20.416,14.34811092]
[1680468856386,19.63,20.42,20.412,19.54]
[1680468860781,19.56,20.417,20.411,0.06591165]
[1680468860983,19.56,20.417,20.41,19.54]
[1680468861988,19.56,20.419,20.411,19.63]
[1680468869696,19.65,20.419,20.411,19.54]
[1680468880107,19.46,20.42,20.412,19.54]
[1680468882007,0.06123361,20.421,20.414,19.65]
[1680468894817,0.06123361,20.421,20.417,19.65]
[1680468895013,19.65,20.425,20.417,19.65]
[1680468895817,0.06952903,20.426,20.421,19.65]
[1680468896018,19.46,20.429,20.421,19.65]
[1680468900825,19.63,20.429,20.421,19.52]
[1680468912030,19.63,20.43,20.423,19.52]
[1680468912734,0.06034268,20.431,20.425,19.63]
[1680468912933,19.63,20.433,20.425,19.63]
[1680468922230,19.63,20.434,20.427,19.63]
[1680468930945,0.06131465,20.435,20.43,19.52]
[1680468931143,19.63,20.437,20.43,19.52]
[1680468931743,19.61,20.437,20.43,19.61]
[1680468932442,0.0688041,20.44,20.436,19.61]
[1680468932646,19.61,20.444,20.436,19.61]
[1680468932853,0.07040452,20.445,20.44,19.49]
[1680468933149,19.55,20.447,20.44,19.49]
[1680468936650,0.06015463,20.45,20.435,146.96091369]
[1680468936854,0.06015463,20.45,20.445,19.61]
[1680468937148,24.48,20.454,20.45,0.21477711]
[1680468937647,29.48,20.458,20.45,0.21477711]
[1680468937847,24.48,20.458,20.45,0.21477711]
[1680468938043,24.48,20.455,20.45,0.21477711]
[1680468938252,24.48,20.455,20.445,0.06090559]
[1680468939450,24.48,20.457,20.446,24.27]
[1680468941850,24.48,20.454,20.445,0.06090559]
[1680468957666,24.48,20.45,20.445,0.06090559]
[1680468957866,24.48,20.45,20.44,0.06338077]
[1680468958563,48.4581,20.449,20.44,0.06338077]
[1680468962669,48.4581,20.449,20.442,24.38]
[1680468963269,48.4581,20.449,20.445,24.49]
[1680468963867,0.06174792,20.455,20.445,24.49]
[1680468967871,0.06174792,20.455,20.449,24.49]
[1680468968075,14.66048514,20.459,20.449,24.49]
[1680468969375,0.06232495,20.459,20.449,24.49]
[1680468977172,0.06232495,20.459,20.452,24.38]
[1680468978478,0.06232495,20.459,20.456,24.49]
[1680468978773,0.06795495,20.465,20.456,24.49]
[1680468991292,24.31,20.464,20.454,14.32840807]
[1680468991482,24.31,20.464,20.453,24.44890251]
[1680468991684,24.49,20.461,20.45,24.38]
[1680468991889,24.49,20.458,20.447,24.49]
[1680468992085,24.49,20.457,20.445,24.49]
[1680468992793,24.48,20.457,20.445,24.48]
[1680468994388,0.07138307,20.458,20.449,24.43]
[1680468996091,0.07138307,20.458,20.453,24.48]
[1680468996288,48.1728,20.462,20.453,24.48]
[1680469000096,48.1728,20.462,20.449,24.3]
[1680469000097,24.48,20.46,20.449,24.3]
[1680469002091,24.48,20.457,20.448,0.07019488]
[1680469009204,24.48,20.46,20.449,24.43]
[1680469017211,48.1728,20.462,20.453,24.3]
[1680469018213,0.06853874,20.463,20.453,24.3]
[1680469022014,0.06853874,20.463,20.454,24.41]
[1680469025019,0.06853874,20.463,20.454,24.35]
[1680469040725,24.46,20.462,20.451,24.46]
[1680469041030,24.46,20.459,20.448,39.28596007]
[1680469041329,5.0,20.461,20.448,14.93596007]
[1680469041330,24.25,20.457,20.448,14.93596007]
[1680469052744,24.46,20.453,20.448,14.93596007]
[1680469052941,24.46,20.453,20.448,14.86576519]
[1680469053141,24.46,20.453,20.443,48.31347237]
[1680469054845,24.48,20.453,20.443,48.31347237]
[1680469062051,24.48,20.453,20.443,72.79347237]
[1680469072062,24.48,20.456,20.445,24.48]
[1680469082069,24.48,20.454,20.443,72.79347237]
[1680469084573,24.48,20.454,20.443,24.54047237]
[1680469084766,24.48,20.451,20.443,0.06047237]
[1680469084971,45.9901,20.45,20.443,0.06047237]
[1680469117103,65.5801,20.45,20.443,19.60047237]
[1680469117498,19.59,20.447,20.443,0.06047237]
[1680469117804,19.59,20.447,20.44,19.54]
[1680469122204,19.49,20.448,20.441,19.54]
[1680469143314,45.9901,20.45,20.444,19.59]
[1680469143821,19.65175066,20.452,20.444,19.59]
[1680469152023,19.65175066,20.452,20.443,19.42]
[1680469152024,19.46,20.45,20.443,19.42]
[1680469164836,19.46,20.447,20.439,19.42]
[1680469182962,19.46,20.444,20.438,0.06738135]
[1680469183158,19.46,20.444,20.436,19.42]
[1680469186366,19.6,20.444,20.436,19.6]
[1680469192068,19.6,20.443,20.435,34.12854104]
[1680469202172,19.6,20.441,20.435,14.66854104]
[1680469202471,19.6,20.441,20.434,19.6692219]
[1680469203774,19.6,20.444,20.436,19.46]
[1680469211973,19.6,20.444,20.436,19.6]
[1680469222191,19.6,20.443,20.436,19.6]
[1680469241515,19.6,20.443,20.434,14.97239469]
[1680469242009,19.6,20.442,20.434,34.54239469]
[1680469248715,19.57,20.442,20.434,34.58239469]
[1680469250417,19.61,20.445,20.437,19.61]
[1680469263527,14.39861628,20.447,20.441,19.61]
[1680469263723,14.32957888,20.447,20.441,19.61]
[1680469264030,19.57,20.448,20.441,19.61]
[1680469282039,19.57,20.45,20.442,19.61]
[1680469286241,19.53,20.45,20.442,19.59]
[1680469292146,19.59,20.448,20.441,19.49]
[1680469302051,19.53,20.449,20.442,19.59]
[1680469310653,0.06708261,20.451,20.444,19.49]
[1680469310853,19.59,20.456,20.448,19.59]
[1680469311158,131.43099626,20.455,20.448,19.59]
[1680469316863,131.43099626,20.455,20.449,19.5]
[1680469317064,131.43099626,20.455,20.449,6.56530425]
[1680469321962,131.43099626,20.455,20.444,0.06057919]
[1680469322169,151.01099626,20.455,20.448,19.58]
[1680469322367,131.43099626,20.454,20.448,19.58]
[1680469331977,131.43099626,20.454,20.449,19.5]
[1680469332173,131.43099626,20.453,20.449,19.5]
[1680469332378,131.43099626,20.455,20.449,19.5]
[1680469332678,131.43099626,20.454,20.449,19.5]
[1680469332879,131.43099626,20.455,20.449,19.5]
[1680469334480,19.58,20.453,20.446,19.5]
[1680469334680,131.43099626,20.452,20.446,19.5]
[1680469337081,131.43099626,20.452,20.446,6.60810266]
[1680469338080,19.58,20.45,20.444,0.06057919]
[1680469338280,19.58,20.447,20.44,0.06911103]
[1680469338482,19.58,20.447,20.439,19.5]
[1680469342186,24.37,20.446,20.436,0.06517947]
[1680469358489,70.4652,20.449,20.438,24.5]
[1680469363394,46.0752,20.449,20.44,24.5]
[1680469372004,46.0752,20.449,20.442,24.48]
[1680469372808,0.06825157,20.451,20.445,24.5]
[1680469373004,0.06175747,20.455,20.445,24.5]
[1680469374403,0.06175747,20.455,20.448,24.5]
[1680469382012,0.06175747,20.455,20.447,24.32]
[1680469386114,0.06175747,20.455,20.447,24.47]
[1680469392518,24.38,20.454,20.442,24.47]
[1680469392913,24.38,20.454,20.441,0.06404224]
[1680469393117,24.38,20.451,20.441,0.06404224]
[1680469402023,24.47,20.45,20.441,0.06404224]
[1680469404422,48.3115,20.449,20.441,0.06404224]
[1680469412231,19.41,20.448,20.441,19.65404224]
[1680469421136,67.9015,20.449,20.441,19.63404224]
[1680469431443,19.59,20.449,20.441,19.63404224]
[1680469431637,19.49,20.452,20.444,19.4]
[1680469437047,19.49,20.449,20.441,19.46404224]
[1680469452156,19.44,20.447,20.441,0.06404224]
[1680469452357,19.44,20.447,20.44,19.47]
[1680469472073,19.59,20.448,20.44,19.47]
[1680469481985,19.59,20.447,20.44,19.47]
[1680469489091,12.83123636,20.439,20.437,0.06998889]
[1680469489289,12.83123636,20.439,20.436,19.59]
[1680469493701,0.06616706,20.445,20.438,19.59]
[1680469493997,0.06616706,20.445,20.439,12.83]
[1680469494294,19.59,20.446,20.438,19.59]
[1680469496394,19.65186392,20.449,20.442,19.59]
[1680469500501,0.06186392,20.449,20.444,19.59]
[1680469500701,19.59,20.452,20.444,19.59]
[1680469501202,0.07060693,20.454,20.448,19.4]
[1680469501401,131.4391623,20.454,20.448,19.4]
[1680469503904,19.6557711,20.458,20.451,19.59]
[1680469504203,0.0657711,20.458,20.454,19.59]
[1680469504408,131.41569375,20.461,20.454,19.59]
[1680469505001,0.07096426,20.463,20.454,19.59]
[1680469505198,0.07096426,20.463,20.458,19.59]
[1680469505397,5.0609752,20.468,20.458,19.59]
[1680469505595,19.59,20.465,20.458,19.59]
[1680469507198,24.35,20.467,20.456,24.42]
[1680469507405,24.35,20.467,20.457,45.4987]
[1680469512008,0.0609752,20.468,20.458,24.39]
[1680469522014,24.4709752,20.468,20.457,69.9487]
[1680469528622,24.41,20.464,20.456,14.82119255]
[1680469528819,24.41,20.464,20.453,24.51676699]
[1680469530522,24.41,20.464,20.453,39.06738385]
[1680469537117,24.41,20.464,20.453,24.51676699]
[1680469537326,24.45,20.461,20.453,0.06676699]
[1680469538018,24.45,20.458,20.453,0.06676699]
[1680469538222,24.45,20.458,20.448,49.15245463]
[1680469540620,24.29,20.458,20.448,49.15245463]
[1680469551527,24.47,20.461,20.45,24.47]
[1680469552126,24.35627781,20.463,20.452,24.4]
[1680469554936,0.06627781,20.463,20.455,24.4]
[1680469562030,0.06627781,20.463,20.457,24.47]
[1680469562231,0.06114589,20.467,20.457,24.47]
[1680469564935,0.06114589,20.467,20.461,24.42]
[1680469565133,0.0611461,20.471,20.461,24.22751428]
[1680469565633,0.0611461,20.471,20.462,45.8232]
[1680469566237,0.0611461,20.471,20.465,24.47]
[1680469566435,0.06960263,20.475,20.465,24.42]
[1680469567841,131.40018464,20.475,20.465,24.42]
[1680469570544,131.40018464,20.475,20.463,0.06227816]
[1680469570545,155.73018464,20.475,20.464,24.4]
[1680469570746,131.33058201,20.474,20.464,24.4]
[1680469572142,155.65058201,20.474,20.463,24.39227816]
[1680469572346,131.33058201,20.473,20.463,24.39227816]
[1680469578161,131.20578925,20.473,20.463,24.39227816]
[1680469580266,24.32,20.474,20.463,24.39227816]
[1680469580562,0.06960263,20.475,20.466,24.33]
[1680469584467,0.06960263,20.475,20.468,24.33]
[1680469596678,0.06960263,20.475,20.464,45.9525]
[1680469596679,0.06960263,20.475,20.465,24.43]
[1680469615091,0.06960263,20.475,20.465,39.29415708]
[1680469617291,0.06960263,20.475,20.465,14.86415708]
[1680469617292,24.43,20.473,20.465,14.86415708]
[1680469617488,24.43,20.473,20.464,45.9525]
[1680469627100,0.06960263,20.475,20.464,45.9525]
[1680469627303,19.52,20.471,20.464,65.5025]
[1680469631713,19.55,20.472,20.465,19.55]
[1680469632908,0.06960263,20.475,20.465,19.55]
[1680469633115,0.06960263,20.475,20.471,19.36]
[1680469633417,150.8703483,20.479,20.471,19.36]
[1680469633618,19.55,20.479,20.471,19.36]
[1680469637118,84.56797958,20.48,20.469,24.42]
[1680469642819,38.98987958,20.48,20.469,24.42]
[1680469645519,24.45298508,20.48,20.469,24.42]
[1680469654531,0.06298508,20.48,20.472,24.42]
[1680469654824,0.06298508,20.48,20.47,24.36]
[1680469655230,24.22,20.477,20.468,0.0678097]
[1680469658427,0.06298508,20.48,20.47,24.42]
[1680469662132,24.42,20.478,20.468,0.0678097]
[1680469670137,0.06298508,20.48,20.47,24.22]
[1680469682143,24.48298508,20.48,20.469,24.42]
[1680469692149,0.06298508,20.48,20.471,24.3]
[1680469694450,0.06298508,20.48,20.471,24.21]
[1680469696351,24.41,20.478,20.468,0.0678097]
[1680469704759,0.06298508,20.48,20.47,24.34]
[1680469707762,0.06298508,20.48,20.468,0.0678097]
[1680469707763,0.06298508,20.48,20.473,24.41]
[1680469721966,0.06298508,20.48,20.471,24.41]
[1680469722172,0.06298508,20.48,20.473,19.53]
[1680469740486,0.06298508,20.48,20.477,19.53]
[1680469740673,34.48934591,20.485,20.477,19.53]
[1680469741180,19.33,20.483,20.474,19.59033212]
[1680469751992,19.33,20.483,20.475,19.53]
[1680469755791,15.00228505,20.486,20.475,19.53]
[1680469755988,15.00228505,20.486,20.474,0.06033212]
[1680469755989,15.00228505,20.486,20.478,19.53]
[1680469756394,34.53228505,20.486,20.478,19.53]
[1680469757195,15.00228505,20.486,20.478,19.42]
[1680469757794,34.38228505,20.486,20.478,19.42]
[1680469759396,19.37,20.484,20.476,19.42]
[1680469762097,19.37,20.484,20.477,19.42]
[1680469763999,19.38,20.482,20.474,19.58033212]
[1680469771807,19.38,20.485,20.477,19.52]
[1680469774111,0.06102716,20.486,20.481,19.42]
[1680469774311,19.37,20.488,20.481,19.42]
[1680469777010,34.13710031,20.491,20.483,19.52]
[1680469777210,14.76710031,20.491,20.481,24.19]
[1680469777609,0.07042777,20.491,20.481,24.19]
[1680469782324,0.07042777,20.491,20.485,24.19]